[Event "*** Biggest EVER Titled Tuesday"]
[Site "Chess.com"]
[Date "2018.04.17"]
[Round "5"]
[White "TheBigBoss04"]
[Black "Cecile-Haussernot"]
[Result "1-0"]
[WhiteElo "2524"]
[BlackElo "2319"]
[TimeControl "180+2"]
[EndTime "14:08:23 PDT"]
[Termination "TheBigBoss04 won by checkmate"]

1. d4 {[%clk 0:03:01.9]} 1... d5 {[%clk 0:02:56.2]} 2. c4 {[%clk 0:03:02.9]}
2... c6 {[%clk 0:02:51]} 3. Nc3 {[%clk 0:03:04.1]} 3... Nf6 {[%clk 0:02:51.4]}
4. Nf3 {[%clk 0:03:05.3]} 4... dxc4 {[%clk 0:02:52.6]} 5. a4 {[%clk 0:03:05]}
5... Bf5 {[%clk 0:02:54.1]} 6. Nh4 {[%clk 0:03:06]} 6... Bc8 {[%clk 0:02:54.2]}
7. Nf3 {[%clk 0:03:07.2]} 7... Bf5 {[%clk 0:02:54.9]} 8. e3 {[%clk 0:03:07.8]}
8... e6 {[%clk 0:02:55.3]} 9. Bxc4 {[%clk 0:03:09.4]} 9... Bb4 {[%clk 0:02:55]}
10. O-O {[%clk 0:03:11]} 10... Nbd7 {[%clk 0:02:55]} 11. Nh4 {[%clk 0:03:11.7]}
11... Bg4 {[%clk 0:02:54.4]} 12. f3 {[%clk 0:03:13]} 12... Bh5 {[%clk
0:02:55.3]} 13. g4 {[%clk 0:03:13.8]} 13... Nd5 {[%clk 0:02:55.3]} 14. Ng2
{[%clk 0:03:14.7]} 14... Bg6 {[%clk 0:02:55.5]} 15. Bd2 {[%clk 0:03:11.9]} 15...
a5 {[%clk 0:02:53.6]} 16. Ne2 {[%clk 0:03:02.1]} 16... Bxd2 {[%clk 0:02:47.4]}
17. Qxd2 {[%clk 0:03:03.6]} 17... N7b6 {[%clk 0:02:47.1]} 18. Bb3 {[%clk
0:03:04.6]} 18... O-O {[%clk 0:02:45.1]} 19. e4 {[%clk 0:03:03]} 19... Nb4
{[%clk 0:02:46.1]} 20. Rad1 {[%clk 0:03:04.1]} 20... Qe7 {[%clk 0:02:45.1]} 21.
h4 {[%clk 0:03:05]} 21... f6 {[%clk 0:02:45.9]} 22. Nef4 {[%clk 0:03:05.3]}
22... Bf7 {[%clk 0:02:46.8]} 23. Nd3 {[%clk 0:03:05.9]} 23... Rad8 {[%clk
0:02:45.3]} 24. Nc5 {[%clk 0:03:05.8]} 24... e5 {[%clk 0:02:46.1]} 25. Bxf7+
{[%clk 0:03:05.8]} 25... Qxf7 {[%clk 0:02:42.5]} 26. Qf2 {[%clk 0:03:06.6]}
26... exd4 {[%clk 0:02:29.8]} 27. Rxd4 {[%clk 0:03:07.8]} 27... Qe7 {[%clk
0:02:30.5]} 28. Rfd1 {[%clk 0:03:05.4]} 28... Rxd4 {[%clk 0:02:28.5]} 29. Qxd4
{[%clk 0:03:05.6]} 29... Nc8 {[%clk 0:02:10.1]} 30. h5 {[%clk 0:03:05.4]} 30...
h6 {[%clk 0:01:48.2]} 31. Nf4 {[%clk 0:03:04.3]} 31... Re8 {[%clk 0:01:46.8]}
32. Ng6 {[%clk 0:03:04.4]} 32... Qc7 {[%clk 0:01:44.8]} 33. Kg2 {[%clk
0:03:03.7]} 33... Ne7 {[%clk 0:01:43.3]} 34. Ne6 {[%clk 0:03:00.6]} 34... Qc8
{[%clk 0:01:39.3]} 35. Qc4 {[%clk 0:02:27.3]} 35... Nxg6 {[%clk 0:01:02]} 36.
Nf4+ {[%clk 0:01:52.6]} 36... Kh7 {[%clk 0:00:49.4]} 37. hxg6+ {[%clk
0:01:34.3]} 37... Kh8 {[%clk 0:00:48.4]} 38. Qf7 {[%clk 0:01:34.6]} 38... Rf8
{[%clk 0:00:35.2]} 39. Ne6 {[%clk 0:01:34.1]} 39... Rxf7 {[%clk 0:00:25.4]} 40.
gxf7 {[%clk 0:01:35.1]} 40... Qxe6 {[%clk 0:00:25.8]} 41. f8=Q+ {[%clk
0:01:36.7]} 41... Kh7 {[%clk 0:00:26.6]} 42. Rd8 {[%clk 0:01:31.9]} 42... Qc4
{[%clk 0:00:18.5]} 43. Qh8+ {[%clk 0:01:32]} 43... Kg6 {[%clk 0:00:19.2]} 44.
Qe8+ {[%clk 0:01:33.6]} 44... Kg5 {[%clk 0:00:20.5]} 45. Kg3 {[%clk 0:01:33.7]}
45... f5 {[%clk 0:00:09.8]} 46. f4+ {[%clk 0:01:30.5]} 46... Kf6 {[%clk
0:00:10.7]} 47. e5# {[%clk 0:01:32.1]} 1-0

[Event "*** Biggest EVER Titled Tuesday"]
[Site "Chess.com"]
[Date "2018.04.17"]
[Round "5"]
[White "lachesisQ"]
[Black "pKiLz5Rn9b"]
[Result "0-1"]
[WhiteElo "2932"]
[BlackElo "2639"]
[TimeControl "180+2"]
[EndTime "14:08:24 PDT"]
[Termination "pKiLz5Rn9b won by resignation"]

1. e4 {[%clk 0:03:01.9]} 1... e6 {[%clk 0:03:00.9]} 2. d4 {[%clk 0:03:02]} 2...
d5 {[%clk 0:03:01.8]} 3. Nc3 {[%clk 0:03:01.5]} 3... dxe4 {[%clk 0:03:02.8]} 4.
Nxe4 {[%clk 0:03:01]} 4... Nd7 {[%clk 0:03:04.4]} 5. Nf3 {[%clk 0:03:01]} 5...
Ngf6 {[%clk 0:03:05.5]} 6. Nxf6+ {[%clk 0:03:01.3]} 6... Nxf6 {[%clk 0:03:07.4]}
7. c3 {[%clk 0:03:01.3]} 7... Be7 {[%clk 0:03:05.2]} 8. Bd3 {[%clk 0:02:59.8]}
8... c5 {[%clk 0:03:05]} 9. dxc5 {[%clk 0:02:57.9]} 9... Bxc5 {[%clk 0:03:05.1]}
10. Bg5 {[%clk 0:02:56.9]} 10... Qc7 {[%clk 0:03:03.2]} 11. Qc2 {[%clk
0:02:56.4]} 11... Bd7 {[%clk 0:02:52.3]} 12. O-O-O {[%clk 0:02:45.9]} 12...
O-O-O {[%clk 0:02:51.3]} 13. Rhe1 {[%clk 0:02:39.3]} 13... Bc6 {[%clk
0:02:51.6]} 14. Ne5 {[%clk 0:02:32.2]} 14... Bxg2 {[%clk 0:02:39]} 15. f3 {[%clk
0:02:24.2]} 15... Bh3 {[%clk 0:02:16.2]} 16. Kb1 {[%clk 0:02:13.8]} 16... Rd5
{[%clk 0:02:06.9]} 17. f4 {[%clk 0:02:04.8]} 17... Rhd8 {[%clk 0:01:59.6]} 18.
Qe2 {[%clk 0:01:51.4]} 18... Bd6 {[%clk 0:01:34.3]} 19. c4 {[%clk 0:01:44.9]}
19... Rd4 {[%clk 0:01:25.1]} 20. Ka1 {[%clk 0:01:08.9]} 20... Bxe5 {[%clk
0:01:12.4]} 21. fxe5 {[%clk 0:00:51.3]} 21... Bg4 {[%clk 0:01:13.1]} 22. Qf2
{[%clk 0:00:42.1]} 22... Bxd1 {[%clk 0:01:09.2]} 23. exf6 {[%clk 0:00:42.9]}
23... gxf6 {[%clk 0:00:53]} 24. Bxf6 {[%clk 0:00:43.7]} 24... Rxd3 {[%clk
0:00:54.3]} 25. Bxd8 {[%clk 0:00:44.7]} 25... Rxd8 {[%clk 0:00:49.4]} 26. Qxa7
{[%clk 0:00:45.2]} 26... Qxc4 {[%clk 0:00:26.5]} 27. Qa8+ {[%clk 0:00:42.5]}
27... Kc7 {[%clk 0:00:27]} 28. Qa5+ {[%clk 0:00:44.4]} 28... Kc6 {[%clk
0:00:27.1]} 29. Qg5 {[%clk 0:00:42.7]} 29... Rd5 {[%clk 0:00:25.1]} 30. Qe3
{[%clk 0:00:41.4]} 30... Re5 {[%clk 0:00:19.1]} 31. b3 {[%clk 0:00:21.3]} 31...
Rxe3 {[%clk 0:00:19.5]} 0-1

[Event "*** Biggest EVER Titled Tuesday"]
[Site "Chess.com"]
[Date "2018.04.17"]
[Round "5"]
[White "gkchesstiger"]
[Black "BilodeauA"]
[Result "1/2-1/2"]
[WhiteElo "2785"]
[BlackElo "2633"]
[TimeControl "180+2"]
[EndTime "14:08:42 PDT"]
[Termination "Game drawn by repetition"]

1. d4 {[%clk 0:03:01.9]} 1... d5 {[%clk 0:02:55.4]} 2. Nf3 {[%clk 0:03:02.7]}
2... Nf6 {[%clk 0:02:54.4]} 3. Bf4 {[%clk 0:03:03.7]} 3... e6 {[%clk 0:02:52.9]}
4. Nbd2 {[%clk 0:03:03.8]} 4... Be7 {[%clk 0:02:54.2]} 5. e3 {[%clk 0:03:03.6]}
5... O-O {[%clk 0:02:55.7]} 6. Bd3 {[%clk 0:03:04]} 6... c5 {[%clk 0:02:56.4]}
7. c3 {[%clk 0:03:04.8]} 7... Nc6 {[%clk 0:02:57.6]} 8. Ne5 {[%clk 0:03:05.7]}
8... Nd7 {[%clk 0:02:50]} 9. h4 {[%clk 0:02:57.8]} 9... c4 {[%clk 0:02:23.1]}
10. Bc2 {[%clk 0:02:57.9]} 10... f5 {[%clk 0:02:24.2]} 11. Nxd7 {[%clk
0:02:51.3]} 11... Bxd7 {[%clk 0:02:24.4]} 12. Nf3 {[%clk 0:02:51.4]} 12... b5
{[%clk 0:02:24.8]} 13. a3 {[%clk 0:02:50.6]} 13... a5 {[%clk 0:02:25.6]} 14. Bg5
{[%clk 0:02:42.8]} 14... Bf6 {[%clk 0:02:02.3]} 15. Bxf6 {[%clk 0:02:42.6]}
15... Qxf6 {[%clk 0:02:03.1]} 16. g3 {[%clk 0:01:42.8]} 16... Be8 {[%clk
0:01:55.4]} 17. Ng5 {[%clk 0:01:42.4]} 17... h6 {[%clk 0:01:41.7]} 18. Nh3
{[%clk 0:01:43.4]} 18... g5 {[%clk 0:01:29.5]} 19. hxg5 {[%clk 0:01:44.3]} 19...
hxg5 {[%clk 0:01:30.7]} 20. f4 {[%clk 0:01:45.8]} 20... g4 {[%clk 0:01:28.7]}
21. Ng5 {[%clk 0:01:46.8]} 21... Bg6 {[%clk 0:01:26.7]} 22. Kf2 {[%clk
0:01:43.7]} 22... Kg7 {[%clk 0:01:27.1]} 23. b3 {[%clk 0:01:43.2]} 23... cxb3
{[%clk 0:01:13.2]} 24. Bxb3 {[%clk 0:01:43.6]} 24... Rh8 {[%clk 0:01:10.1]} 25.
Qe2 {[%clk 0:01:40.6]} 25... Rxh1 {[%clk 0:00:54.9]} 26. Rxh1 {[%clk 0:01:40.5]}
26... Rb8 {[%clk 0:00:55.9]} 27. Bc2 {[%clk 0:01:31.1]} 27... Qe7 {[%clk
0:00:56.1]} 28. Ra1 {[%clk 0:01:15.6]} 28... Kf6 {[%clk 0:00:55.9]} 29. Bd3
{[%clk 0:00:59.1]} 29... Na7 {[%clk 0:00:57]} 30. Qb2 {[%clk 0:00:53.5]} 30...
Rh8 {[%clk 0:00:57.1]} 31. Kg2 {[%clk 0:00:48.3]} 31... Be8 {[%clk 0:00:42.8]}
32. Rh1 {[%clk 0:00:45.4]} 32... Rxh1 {[%clk 0:00:42.1]} 33. Kxh1 {[%clk
0:00:46.6]} 33... Kg7 {[%clk 0:00:23.7]} 34. Kg1 {[%clk 0:00:45.6]} 34... Qd7
{[%clk 0:00:23.2]} 35. Kf2 {[%clk 0:00:35.2]} 35... Nc8 {[%clk 0:00:24.3]} 36.
Ke1 {[%clk 0:00:26.3]} 36... Nd6 {[%clk 0:00:25.8]} 37. Qh2 {[%clk 0:00:21.6]}
37... Bg6 {[%clk 0:00:27.3]} 38. Qb2 {[%clk 0:00:22.5]} 38... Kf6 {[%clk
0:00:26.8]} 39. Qh2 {[%clk 0:00:22.4]} 39... Kg7 {[%clk 0:00:27.9]} 40. Qb2
{[%clk 0:00:23.4]} 40... Kf6 {[%clk 0:00:27.8]} 41. Qh2 {[%clk 0:00:24.3]} 41...
Kg7 {[%clk 0:00:27.8]} 42. Qb2 {[%clk 0:00:25.2]} 1/2-1/2

[Event "*** Biggest EVER Titled Tuesday"]
[Site "Chess.com"]
[Date "2018.04.17"]
[Round "5"]
[White "lukas_111111"]
[Black "StellarChessPro"]
[Result "0-1"]
[WhiteElo "2494"]
[BlackElo "2382"]
[TimeControl "180+2"]
[EndTime "14:08:43 PDT"]
[Termination "StellarChessPro won by checkmate"]

1. e4 {[%clk 0:03:01.9]} 1... c6 {[%clk 0:03:00.4]} 2. d4 {[%clk 0:03:02.4]}
2... d5 {[%clk 0:03:02.3]} 3. e5 {[%clk 0:03:04]} 3... Bf5 {[%clk 0:03:01.6]} 4.
Be2 {[%clk 0:03:05.1]} 4... Nd7 {[%clk 0:03:02.2]} 5. Nf3 {[%clk 0:03:05.8]}
5... e6 {[%clk 0:03:03.1]} 6. O-O {[%clk 0:03:07.4]} 6... h6 {[%clk 0:03:04]} 7.
Nbd2 {[%clk 0:03:08.6]} 7... Ne7 {[%clk 0:03:05.4]} 8. Nb3 {[%clk 0:03:09.3]}
8... Bh7 {[%clk 0:03:06.4]} 9. Bd2 {[%clk 0:03:10]} 9... Ng6 {[%clk 0:03:07.7]}
10. Bd3 {[%clk 0:03:05.5]} 10... Be7 {[%clk 0:03:08.6]} 11. g3 {[%clk
0:03:02.4]} 11... O-O {[%clk 0:03:09.2]} 12. h4 {[%clk 0:03:03.4]} 12... Re8
{[%clk 0:03:10.3]} 13. Qe2 {[%clk 0:02:57.2]} 13... Ngf8 {[%clk 0:03:11]} 14.
Bxh7+ {[%clk 0:02:49.2]} 14... Nxh7 {[%clk 0:03:12.8]} 15. Nh2 {[%clk
0:02:45.2]} 15... c5 {[%clk 0:03:12.7]} 16. c3 {[%clk 0:02:46.1]} 16... c4
{[%clk 0:03:12.6]} 17. Nc1 {[%clk 0:02:46.4]} 17... f6 {[%clk 0:03:11.9]} 18.
exf6 {[%clk 0:02:44]} 18... Bxf6 {[%clk 0:03:12.2]} 19. f4 {[%clk 0:02:42.1]}
19... b5 {[%clk 0:03:04.6]} 20. a4 {[%clk 0:02:34.1]} 20... b4 {[%clk
0:03:04.6]} 21. Ng4 {[%clk 0:02:30.8]} 21... bxc3 {[%clk 0:03:03.7]} 22. bxc3
{[%clk 0:02:30.8]} 22... Rb8 {[%clk 0:03:04.4]} 23. Na2 {[%clk 0:02:20.8]} 23...
Rb2 {[%clk 0:03:03.5]} 24. Nb4 {[%clk 0:02:15.1]} 24... Bxd4+ {[%clk 0:02:46.1]}
25. cxd4 {[%clk 0:02:01.6]} 25... c3 {[%clk 0:02:46.8]} 26. Nxh6+ {[%clk
0:02:02.5]} 26... gxh6 {[%clk 0:02:41.6]} 27. Qg4+ {[%clk 0:02:01.7]} 27... Kh8
{[%clk 0:02:40.5]} 28. Bxc3 {[%clk 0:02:02.1]} 28... Rg8 {[%clk 0:02:22.7]} 29.
Qf3 {[%clk 0:01:54.7]} 29... Qxh4 {[%clk 0:02:11.2]} 30. Bxb2 {[%clk 0:01:44.9]}
30... Rxg3+ {[%clk 0:02:10.7]} 31. Qxg3 {[%clk 0:01:42]} 31... Qxg3+ {[%clk
0:02:06.7]} 32. Kh1 {[%clk 0:01:42.8]} 32... Nhf6 {[%clk 0:01:46.2]} 33. Ra3
{[%clk 0:01:39]} 33... Qh4+ {[%clk 0:01:42.3]} 34. Kg2 {[%clk 0:01:40]} 34...
Ng4 {[%clk 0:01:39.9]} 35. Rh3 {[%clk 0:01:36.5]} 35... Qf6 {[%clk 0:01:33]} 36.
Rg3 {[%clk 0:01:30]} 36... Qf5 {[%clk 0:01:29.4]} 37. Kg1 {[%clk 0:00:53.7]}
37... Ndf6 {[%clk 0:01:27.9]} 38. Rc1 {[%clk 0:00:33.8]} 38... Qxf4 {[%clk
0:01:16.1]} 39. Rc8+ {[%clk 0:00:34.3]} 39... Kh7 {[%clk 0:01:15.8]} 40. Rg2
{[%clk 0:00:35.2]} 40... Qe3+ {[%clk 0:01:14.3]} 41. Kf1 {[%clk 0:00:35.5]}
41... Qf4+ {[%clk 0:00:49.3]} 42. Kg1 {[%clk 0:00:36.2]} 42... h5 {[%clk
0:00:47.8]} 43. Nd3 {[%clk 0:00:24.1]} 43... Qe3+ {[%clk 0:00:47.9]} 44. Nf2
{[%clk 0:00:25]} 44... Qe1# {[%clk 0:00:38.7]} 0-1

[Event "*** Biggest EVER Titled Tuesday"]
[Site "Chess.com"]
[Date "2018.04.17"]
[Round "5"]
[White "joshuacao"]
[Black "Renegade_Hitman"]
[Result "1-0"]
[WhiteElo "2008"]
[BlackElo "2064"]
[TimeControl "180+2"]
[EndTime "14:08:44 PDT"]
[Termination "joshuacao won by resignation"]

1. e4 {[%clk 0:03:01.9]} 1... e5 {[%clk 0:03:00.2]} 2. Nf3 {[%clk 0:03:02.9]}
2... Nc6 {[%clk 0:03:01.7]} 3. Bb5 {[%clk 0:03:04.3]} 3... a6 {[%clk 0:03:01.6]}
4. Ba4 {[%clk 0:03:05.3]} 4... Nf6 {[%clk 0:03:02.2]} 5. O-O {[%clk 0:03:05.4]}
5... Be7 {[%clk 0:03:02.7]} 6. Re1 {[%clk 0:03:03.8]} 6... b5 {[%clk 0:03:03.4]}
7. Bb3 {[%clk 0:03:01.9]} 7... d6 {[%clk 0:03:03.4]} 8. c3 {[%clk 0:03:00.7]}
8... Na5 {[%clk 0:03:03]} 9. Bc2 {[%clk 0:03:00.4]} 9... c5 {[%clk 0:03:04.3]}
10. h3 {[%clk 0:02:53.3]} 10... Nc6 {[%clk 0:03:04.3]} 11. d4 {[%clk 0:02:53.2]}
11... O-O {[%clk 0:03:01.5]} 12. Nbd2 {[%clk 0:02:53.5]} 12... Qc7 {[%clk
0:03:01.8]} 13. Nf1 {[%clk 0:02:53.4]} 13... cxd4 {[%clk 0:02:51.5]} 14. cxd4
{[%clk 0:02:55.3]} 14... Nxd4 {[%clk 0:02:51.4]} 15. Nxd4 {[%clk 0:02:54]} 15...
exd4 {[%clk 0:02:52.4]} 16. Bf4 {[%clk 0:02:39.5]} 16... Bb7 {[%clk 0:02:40.2]}
17. Rc1 {[%clk 0:02:38.1]} 17... Qb6 {[%clk 0:02:33.3]} 18. Ng3 {[%clk
0:02:38.4]} 18... Rfc8 {[%clk 0:02:33]} 19. Nf5 {[%clk 0:02:37.5]} 19... Bf8
{[%clk 0:02:34.2]} 20. Nxd4 {[%clk 0:02:35.9]} 20... Re8 {[%clk 0:02:24.1]} 21.
e5 {[%clk 0:01:25.9]} 21... dxe5 {[%clk 0:02:13.7]} 22. Rxe5 {[%clk 0:01:17.7]}
22... Rad8 {[%clk 0:01:26.8]} 23. Rxe8 {[%clk 0:01:04.9]} 23... Nxe8 {[%clk
0:01:27.2]} 24. Be3 {[%clk 0:00:32.8]} 24... Bc5 {[%clk 0:01:26.7]} 25. Bxh7+
{[%clk 0:00:19.1]} 25... Kf8 {[%clk 0:01:12.8]} 26. Ne6+ {[%clk 0:00:13.1]}
26... Qxe6 {[%clk 0:01:13.5]} 27. Bxc5+ {[%clk 0:00:12.4]} 27... Nd6 {[%clk
0:01:12.7]} 28. Rc3 {[%clk 0:00:06.6]} 28... Qd5 {[%clk 0:00:51.4]} 29. Qxd5
{[%clk 0:00:06.6]} 29... Bxd5 {[%clk 0:00:52.5]} 30. Rd3 {[%clk 0:00:07.5]}
30... Ke7 {[%clk 0:00:44.7]} 31. Rxd5 {[%clk 0:00:07.6]} 31... g6 {[%clk
0:00:45.6]} 32. Bg8 {[%clk 0:00:02.1]} 32... Rxg8 {[%clk 0:00:31.1]} 33. Rxd6
{[%clk 0:00:03.1]} 33... Rd8 {[%clk 0:00:19.5]} 34. Rxd8+ {[%clk 0:00:03.7]}
34... Kxd8 {[%clk 0:00:21.4]} 35. Kh2 {[%clk 0:00:05]} 35... Kd7 {[%clk
0:00:22.6]} 36. b4 {[%clk 0:00:06.6]} 36... Kc6 {[%clk 0:00:24.4]} 37. Kg3
{[%clk 0:00:07.4]} 37... a5 {[%clk 0:00:26.3]} 38. Kf4 {[%clk 0:00:08.7]} 38...
axb4 {[%clk 0:00:27]} 39. Bxb4 {[%clk 0:00:10.6]} 39... Kd5 {[%clk 0:00:28.3]}
40. a3 {[%clk 0:00:12.4]} 40... Kc4 {[%clk 0:00:29.7]} 41. g4 {[%clk 0:00:13.7]}
41... f6 {[%clk 0:00:30.9]} 42. h4 {[%clk 0:00:15.6]} 1-0

[Event "*** Biggest EVER Titled Tuesday"]
[Site "Chess.com"]
[Date "2018.04.17"]
[Round "5"]
[White "Oleksandr_Bortnyk"]
[Black "krzyzan94"]
[Result "1-0"]
[WhiteElo "2793"]
[BlackElo "2602"]
[TimeControl "180+2"]
[EndTime "14:08:45 PDT"]
[Termination "Oleksandr_Bortnyk won by resignation"]

1. e4 {[%clk 0:02:58.5]} 1... g6 {[%clk 0:02:58.7]} 2. d4 {[%clk 0:02:57.7]}
2... Bg7 {[%clk 0:03:00.2]} 3. Nc3 {[%clk 0:02:57.8]} 3... d6 {[%clk 0:03:01.5]}
4. Be3 {[%clk 0:02:56.8]} 4... a6 {[%clk 0:03:01.4]} 5. g4 {[%clk 0:02:51.8]}
5... b5 {[%clk 0:03:01.4]} 6. Bg2 {[%clk 0:02:52.8]} 6... Bb7 {[%clk 0:03:02.3]}
7. h3 {[%clk 0:02:48.7]} 7... Nd7 {[%clk 0:03:02.2]} 8. a3 {[%clk 0:02:46.1]}
8... e6 {[%clk 0:02:57.4]} 9. Nge2 {[%clk 0:02:43.6]} 9... h5 {[%clk 0:02:54.5]}
10. g5 {[%clk 0:02:35.4]} 10... Ne7 {[%clk 0:02:54.8]} 11. O-O {[%clk
0:02:30.4]} 11... Nb6 {[%clk 0:02:53.5]} 12. b3 {[%clk 0:02:30.8]} 12... Qd7
{[%clk 0:02:50]} 13. f4 {[%clk 0:02:29.7]} 13... e5 {[%clk 0:02:43.9]} 14. d5
{[%clk 0:02:07.7]} 14... h4 {[%clk 0:02:18.8]} 15. Qd3 {[%clk 0:01:51.3]} 15...
f6 {[%clk 0:01:59.8]} 16. gxf6 {[%clk 0:01:41.4]} 16... Bxf6 {[%clk 0:02:01.7]}
17. fxe5 {[%clk 0:01:43]} 17... Bxe5 {[%clk 0:02:02.9]} 18. Nd4 {[%clk
0:01:17.7]} 18... O-O-O {[%clk 0:02:02.9]} 19. a4 {[%clk 0:01:18.8]} 19... b4
{[%clk 0:02:02.6]} 20. a5 {[%clk 0:01:20.2]} 20... bxc3 {[%clk 0:01:47]} 21.
axb6 {[%clk 0:01:20.3]} 21... cxb6 {[%clk 0:01:48.9]} 22. Qxc3+ {[%clk
0:01:02.3]} 22... Kb8 {[%clk 0:01:49.2]} 23. Qb4 {[%clk 0:01:03.4]} 23... Nc8
{[%clk 0:01:43.3]} 24. Nc6+ {[%clk 0:00:41.3]} 24... Bxc6 {[%clk 0:01:01.4]} 25.
dxc6 {[%clk 0:00:43.2]} 25... Qa7 {[%clk 0:00:48.2]} 26. Rad1 {[%clk 0:00:14.8]}
26... Rhf8 {[%clk 0:00:48.7]} 27. Qc4 {[%clk 0:00:10.6]} 27... Qc7 {[%clk
0:00:44.1]} 28. Qxa6 {[%clk 0:00:08.2]} 28... Qxc6 {[%clk 0:00:45.2]} 29. c4
{[%clk 0:00:09.5]} 29... Qb7 {[%clk 0:00:43]} 30. Qb5 {[%clk 0:00:10.1]} 30...
g5 {[%clk 0:00:39]} 31. Bxg5 {[%clk 0:00:10.7]} 31... Rxf1+ {[%clk 0:00:37.8]}
32. Rxf1 {[%clk 0:00:11.2]} 32... Rg8 {[%clk 0:00:39.7]} 33. Rf5 {[%clk
0:00:09]} 33... Ne7 {[%clk 0:00:37.3]} 34. Bxe7 {[%clk 0:00:06.5]} 34... Bd4+
{[%clk 0:00:37.5]} 35. Kh1 {[%clk 0:00:06.1]} 35... Qxe7 {[%clk 0:00:37.2]} 36.
Qd5 {[%clk 0:00:07.1]} 36... Qg7 {[%clk 0:00:38.7]} 37. e5 {[%clk 0:00:08.1]}
37... Ka7 {[%clk 0:00:35.6]} 38. Rf7+ {[%clk 0:00:07.6]} 1-0

[Event "*** Biggest EVER Titled Tuesday"]
[Site "Chess.com"]
[Date "2018.04.17"]
[Round "5"]
[White "AvitalBor"]
[Black "sergeikim"]
[Result "1-0"]
[WhiteElo "2585"]
[BlackElo "2456"]
[TimeControl "180+2"]
[EndTime "14:08:46 PDT"]
[Termination "AvitalBor won by resignation"]

1. Nf3 {[%clk 0:03:01.9]} 1... Nf6 {[%clk 0:03:00.3]} 2. c4 {[%clk 0:03:02.1]}
2... g6 {[%clk 0:03:01.2]} 3. Nc3 {[%clk 0:03:03.5]} 3... Bg7 {[%clk 0:03:02.2]}
4. e4 {[%clk 0:03:04.2]} 4... d6 {[%clk 0:03:03.1]} 5. d4 {[%clk 0:03:04.9]}
5... O-O {[%clk 0:03:03.9]} 6. h3 {[%clk 0:03:06.5]} 6... e5 {[%clk 0:03:04.2]}
7. d5 {[%clk 0:03:06.5]} 7... a5 {[%clk 0:03:03.7]} 8. Be3 {[%clk 0:03:06.6]}
8... Na6 {[%clk 0:03:04.1]} 9. g4 {[%clk 0:03:07]} 9... c6 {[%clk 0:03:02.1]}
10. Be2 {[%clk 0:03:06.2]} 10... cxd5 {[%clk 0:02:51.9]} 11. cxd5 {[%clk
0:03:08.1]} 11... Nd7 {[%clk 0:02:48.7]} 12. Nd2 {[%clk 0:03:07.7]} 12... Ndc5
{[%clk 0:02:45.5]} 13. g5 {[%clk 0:02:57.1]} 13... Nb4 {[%clk 0:02:33.3]} 14.
Qb1 {[%clk 0:02:53.9]} 14... b6 {[%clk 0:02:28.3]} 15. a3 {[%clk 0:02:53.6]}
15... Nba6 {[%clk 0:02:28.5]} 16. b4 {[%clk 0:02:50.1]} 16... Nb7 {[%clk
0:02:13.1]} 17. Nc4 {[%clk 0:02:48.3]} 17... f5 {[%clk 0:02:05.7]} 18. h4 {[%clk
0:02:47.5]} 18... Bd7 {[%clk 0:01:38.8]} 19. Bxb6 {[%clk 0:02:32.9]} 19... Qc8
{[%clk 0:01:34.9]} 20. Qb2 {[%clk 0:02:19.1]} 20... axb4 {[%clk 0:01:17.8]} 21.
axb4 {[%clk 0:02:18.7]} 21... Nc7 {[%clk 0:01:18.2]} 22. Rc1 {[%clk 0:02:09.5]}
22... Qb8 {[%clk 0:01:13.4]} 23. O-O {[%clk 0:01:59.9]} 23... Nb5 {[%clk
0:01:05]} 24. Nxb5 {[%clk 0:01:55.8]} 24... Bxb5 {[%clk 0:01:05.3]} 25. Na5
{[%clk 0:01:55.6]} 25... Bxe2 {[%clk 0:01:00.4]} 26. Qxe2 {[%clk 0:01:55.5]}
26... Nxa5 {[%clk 0:00:58.3]} 27. bxa5 {[%clk 0:01:57.4]} 27... fxe4 {[%clk
0:00:57.6]} 28. Rc4 {[%clk 0:01:52.6]} 28... Qb7 {[%clk 0:00:51.3]} 29. Rd1
{[%clk 0:01:49]} 29... Rf4 {[%clk 0:00:39]} 30. Rxe4 {[%clk 0:01:47.7]} 30...
Raf8 {[%clk 0:00:37.9]} 31. Rxf4 {[%clk 0:01:36.7]} 31... Rxf4 {[%clk
0:00:37.4]} 32. Qb5 {[%clk 0:01:38.1]} 32... Qc8 {[%clk 0:00:32.5]} 33. Rd3
{[%clk 0:00:59.1]} 33... e4 {[%clk 0:00:20.8]} 34. Rg3 {[%clk 0:00:52.8]} 34...
Qc1+ {[%clk 0:00:13.5]} 35. Kg2 {[%clk 0:00:52.3]} 35... Qc2 {[%clk 0:00:12.1]}
36. Qe8+ {[%clk 0:00:52.9]} 36... Bf8 {[%clk 0:00:13.1]} 37. Qe6+ {[%clk
0:00:52.5]} 37... Kh8 {[%clk 0:00:14]} 38. a6 {[%clk 0:00:48.4]} 38... Qb2
{[%clk 0:00:09.9]} 39. Be3 {[%clk 0:00:47.7]} 39... Rxh4 {[%clk 0:00:06.6]} 40.
Qf6+ {[%clk 0:00:46.3]} 40... Qxf6 {[%clk 0:00:06.6]} 41. gxf6 {[%clk
0:00:48.2]} 1-0